Cogmind - Beta 11 @@@ ROGUE MODE // 2022.03.27 @ 19:02:37 Player: Red Box Result: Self-destructed Performance ------------- Evolutions (2) 1000 Regions Visited (5) 1000 Robots Destroyed (44) 220 Value Destroyed (1073) 1073 Prototype IDs (28) 560 Alien Tech Used (0) 0 Bonus (363) 363 TOTAL SCORE: 4216 Bonus ------- Follower Combat Kills 63 Aligned with FarCom 300 Cogmind --------- Core Integrity 496/550 Matter 298/300 Energy 53/275 System Corruption 0% Temperature Cool (18) Movement Walking (260) Ox2 Location -8/Materials Parts ------- > --- POWER (1) -------- Deuterium Engine > --- PROPULSION (3) --- Improved Aluminum Leg Improved Aluminum Leg > --- UTILITY (5) ------ Improved Heat Sink High-capacity Storage Unit Hardened Medium Armor Plating Reflective Plating System Shield > --- WEAPON (2) ------- EM Pulse Cannon Slug Cannon > --- INVENTORY (20) --- Deuterium Engine Improved Aluminum Leg Carbon-fiber Leg Carbon-fiber Leg VSS Leg Airjet Cryofiber Web Particle Charger Utility Shielding Hardened Medium Armor Plating Reactive Plating Shock Rifle Light EM Pulse Cannon EM Pulse Cannon EM Pulse Cannon EM Pulse Cannon Firepult Rocket Launcher Blade Saw Peak State ------------ > --- POWER ------------ Deuterium Engine > --- PROPULSION ------- Improved Aluminum Leg Improved Aluminum Leg Carbon-fiber Leg > --- UTILITY ---------- Improved Heat Sink High-capacity Storage Unit Hardened Medium Armor Plating Reflective Plating System Shield > --- WEAPON ----------- EM Pulse Cannon EM Pulse Cannon > --- INVENTORY -------- Deuterium Engine Improved Aluminum Leg Carbon-fiber Leg Carbon-fiber Leg VSS Leg Airjet Cryofiber Web Machine Analyzer Utility Shielding Hardened Medium Armor Plating Reactive Plating Shock Rifle Light EM Pulse Cannon EM Pulse Cannon Heavy Particle Cannon Firepult Slug Cannon Rocket Launcher Blade Saw [Rating: 36] Favorites ----------- Power Ion Engine Engine Ion Engine Propulsion Improved Aluminum Leg Leg Improved Aluminum Leg Wheel Compact Wheel Utility High-capacity Storage Unit Device Improved Heat Sink Storage High-capacity Storage Unit Hackware System Shield Protection Hardened Medium Armor Plating Weapon EM Pulse Cannon Energy Gun Medium Laser Energy Cannon EM Pulse Cannon Ballistic Cannon Slug Cannon Launcher Grenade Launcher Build | -11 -10 -10 -10 -9 -8 ------- Run | Scr Mat Min Exi Min Mat Slots Evolved 4 | . . . . . 4 Power . | . . . . . . Propulsion 1 | . . . . . 1 Utility 3 | . . . . . 3 Weapon . | . . . . . . Parts Attached 44 | 7 9 13 5 3 7 Power 4 | 1 1 1 . . 1 Engine 4 | 1 1 1 . . 1 Core . | . . . . . . Reactor . | . . . . . . Propulsion 10 | 2 3 3 1 . 1 Treads . | . . . . . . Leg 6 | 2 . 2 1 . 1 Wheel 4 | . 3 1 . . . Hover . | . . . . . . Flight . | . . . . . . Utility 19 | 2 3 3 4 3 4 Device 12 | 1 1 3 4 3 . Storage 3 | 1 2 . . . . Processor . | . . . . . . Hackware 1 | . . . . . 1 Protection 3 | . . . . . 3 Artifact . | . . . . . . Weapon 11 | 2 2 6 . . 1 Energy Gun 2 | 2 . . . . . Energy Cannon 6 | . 2 4 . . . Ballistic Gun . | . . . . . . Ballistic Cannon 1 | . . . . . 1 Launcher 2 | . . 2 . . . Special Weapon . | . . . . . . Impact Weapon . | . . . . . . Slashing Weapon . | . . . . . . Piercing Weapon . | . . . . . . Special Melee Weapon . | . . . . . . Unidentified Prototypes 1 | . . . . 1 . Parts Lost 4 | . . 3 . . 1 Power 1 | . . 1 . . . Propulsion 2 | . . 1 . . 1 Utility 1 | . . 1 . . . Weapon . | . . . . . . Highest Loss Streak 1 | . . 1 . . 1 To Critical Strikes . | . . . . . . Average Slot Usage (%) 99 | . 99 99 99 100 99 Engine 13 | . 14 13 14 14 9 Leg 21 | . 5 18 28 28 26 Wheel 6 | . 21 8 . . . Device 13 | . 14 13 13 14 9 Storage 13 | . 14 14 14 14 9 Hackware 1 | . . . . . 9 Protection 2 | . . . . . 18 Energy Gun 4 | . 20 . . . . Energy Cannon 22 | . 7 27 28 28 17 Naked Turns . | . . . . . . Heaviest Build 75 | 15 52 58 58 58 75 Greatest Support 41 | 20 32 32 28 28 41 Greatest Overweight (x) 3 | 1 1 3 2 2 1 Average Overweight (x) 1 | . . 1 2 2 1 Largest Inventory Capacity 20 | 8 20 20 20 20 20 Average Capacity 19 | 7 17 20 20 20 20 Most Carried 20 | 8 20 20 20 20 20 Average Carried 18 | 5 14 19 19 19 19 Final Capacity 20 | 8 20 20 20 20 20 Final Carried 20 | 8 20 20 20 20 20 Class Distribution -------------------- 100% | Mutant Dominant Class ---------------- Mutant | -10/Materials Mutant | -10/Mines Mutant | -10/Exiles Mutant | -9/Mines Mutant | -8/Materials Resources | -11 -10 -10 -10 -9 -8 ----------- Run | Scr Mat Min Exi Min Mat Matter Collected 712 | 270 90 180 . 47 125 Remotely . | . . . . . . Salvage Created 1400 | 89 389 494 . . 428 Parts 87 | 4 27 28 . . 28 Haulers Intercepted 2 | . 2 . . . . Recyclers Shooed 1 | 1 . . . . . Parts Field Recycled . | . . . . . . Retrieved Matter . | . . . . . . Parts Self-Destructed . | . . . . . . Prevented . | . . . . . . Kills | -11 -10 -10 -10 -9 -8 ------- Run | Scr Mat Min Exi Min Mat Combat Hostiles Destroyed 33 | . 10 15 . . 8 Guns 10 | . 10 . . . . Cannons 18 | . . 10 . . 8 AOE 4 | . . 4 . . . Classes Destroyed 9 | 2 4 1 . . 2 Worker 1 | . . . . . 1 Tunneler 1 | 1 . . . . . Hauler 2 | . 2 . . . . Recycler 1 | 1 . . . . . Mechanic 1 | . . 1 . . . Watcher 5 | . 2 . . . 3 Swarmer 13 | . 6 3 . . 4 Grunt 19 | . 4 12 . . 3 Sentry 1 | . . . . . 1 Best Kill Streak 5 | 1 3 4 . . 5 Combat Bots Only 4 | . 3 3 . . 4 Max Kills in Single Turn 2 | 1 1 2 . . 1 Gunslinging . | . . . . . . Exploded 2 | . . 2 . . . Melee . | . . . . . . Uniques/NPCs Destroyed . | . . . . . . Combat | -11 -10 -10 -10 -9 -8 -------- Run | Scr Mat Min Exi Min Mat Damage Taken 1353 | . 261 523 . . 569 Core 217 | . 32 131 . . 54 Absorbed by Shields . | . . . . . . Regen/Repaired (Parts) 104 | . 104 . . . . Core Remaining (%) 67 | 100 . . . 34 . Volleys Fired 109 | 6 37 34 . . 32 Largest 2 | 2 2 2 . . 2 Hottest 126 | 100 120 126 . . 126 Shots Fired 208 | 12 74 68 . . 54 Gun 78 | 12 66 . . . . Cannon 125 | . 8 63 . . 54 Launcher 5 | . . 5 . . . Special . | . . . . . . Kinetic 6 | . . . . . 6 Thermal 143 | 12 74 57 . . . Explosive 5 | . . 5 . . . Electromagnetic 54 | . . 6 . . 48 Robot Hit Streak 10 | 3 10 7 . . 6 Robot Miss Streak 3 | 3 3 2 . . 3 Penetration Max . | . . . . . . Secondary Targets 1 | . 1 . . . . Max Gunslinging Chain 1 | . 1 . . . . Shots Hit Robots 122 | 6 46 42 . . 28 Core Hits 60 | 3 21 22 . . 14 Critical Kills 1 | . . 1 . . . Critical Parts Destroyed 1 | . . . . . 1 Critical Strikes 4 | . 2 1 . . 1 Burn 2 | . 2 . . . . Meltdown 1 | . . 1 . . . Destroy 1 | . . . . . 1 Melee Attacks . | . . . . . . Impact . | . . . . . . Slashing . | . . . . . . Piercing . | . . . . . . Sneak Attacks . | . . . . . . Combat Hostiles . | . . . . . . Follow-up Attacks . | . . . . . . Damage Inflicted 2581 | 74 595 1061 . . 851 Guns 617 | 74 543 . . . . Cannons 1583 | . 52 715 . . 816 Explosions 378 | . . 346 . . 32 Melee . | . . . . . . Ramming 3 | . . . . . 3 Kinetic 90 | . . . . . 90 Thermal 1361 | 74 595 660 . . 32 Explosive 346 | . . 346 . . . Electromagnetic 781 | . . 55 . . 726 Impact . | . . . . . . Slashing . | . . . . . . Piercing . | . . . . . . Highest Corruption . | . . . . . . Average Corruption . | . . . . . . Corruption Purged . | . . . . . . Corruption Blocked . | . . . . . . Overload Shots . | . . . . . . Overflow Damage 20 | . . . . . 20 Projectiles 20 | . . . . . 20 Explosions . | . . . . . . Melee . | . . . . . . Knockbacks 1 | . . . . . 1 Impact . | . . . . . . Kinetic 1 | . . . . . 1 Secondary . | . . . . . . Self-Inflicted Damage 32 | . . 3 . . 29 Shots 2 | . . 1 . . 1 Rammed . | . . . . . . Targets Rammed 2 | . . . . . 2 Kicked 2 | . . . . . 2 Crushed . | . . . . . . Highest Temperature 300 | 117 111 285 . . 300 Average Temperature 61 | 46 29 60 . . 98 Received Heat Transfer 495 | . 102 276 . . 117 Siege Activations . | . . . . . . Robots Corrupted . | . . . . . . Combat Hostiles . | . . . . . . Parts Fried 8 | . . . . . 8 Impact Corruptions . | . . . . . . Robots Melted 1 | . . 1 . . . Combat Hostiles 1 | . . 1 . . . Parts Melted 8 | 1 4 3 . . . Heat Transferred 3491 | 222 1850 1369 . . 50 Parts Sabotaged . | . . . . . . Parts Stolen . | . . . . . . Parts Stripped . | . . . . . . Power Chain Reactions 1 | . . . . . 1 Missiles Intercepted . | . . . . . . Alert | -11 -10 -10 -10 -9 -8 ------- Run | Scr Mat Min Exi Min Mat Peak Influence 276 | 10 218 221 . 81 276 Initial 31 | . 6 5 . . 31 Average 54 | 3 74 92 . 1 64 Maximum Alert Level 1 | . 1 1 . . 1 Low Security (%) 96 | 100 92 99 . 100 95 Level 1 3 | . 7 . . . 4 Level 2 . | . . . . . . Level 3 . | . . . . . . Level 4 . | . . . . . . Level 5 . | . . . . . . High Security . | . . . . . . Max Security . | . . . . . . Squads Dispatched 5 | . . 2 . . 3 Investigation 3 | . . 1 . . 2 Extermination . | . . . . . . Reinforcement 1 | . . . . . 1 Assault 1 | . . 1 . . . Garrison . | . . . . . . Intercept . | . . . . . . Searches Triggered . | . . . . . . Construction Impeded . | . . . . . . Haulers Reinforced . | . . . . . . Active Scanning Responses . | . . . . . . Cargo Convoy Interrupts . | . . . . . . Stealth | -11 -10 -10 -10 -9 -8 --------- Run | Scr Mat Min Exi Min Mat Distress Signals 1 | . 1 . . . . Communications Jammed . | . . . . . . Distress Signals . | . . . . . . Times Spotted 60 | . 22 18 . . 20 Peak Tracking Total 6 | . 3 4 . . 6 Tactical Retreats 5 | . 1 1 . . 3 Traps | -11 -10 -10 -10 -9 -8 ------- Run | Scr Mat Min Exi Min Mat Traps Triggered . | . . . . . . Indirectly . | . . . . . . Trap Hack Attempts . | . . . . . . Triggered . | . . . . . . Disarmed . | . . . . . . Reprogrammed . | . . . . . . Reused . | . . . . . . Traps Extracted . | . . . . . . Installed . | . . . . . . Triggered . | . . . . . . Machines | -11 -10 -10 -10 -9 -8 ---------- Run | Scr Mat Min Exi Min Mat Machines Disabled 1 | . . . . . 1 Max in Single Turn 1 | . . . . . 1 Machines Sabotaged . | . . . . . . Garrisons Compromised . | . . . . . . Overloaded Fab Kills . | . . . . . . Hacking | -11 -10 -10 -10 -9 -8 --------- Run | Scr Mat Min Exi Min Mat Machines Accessed 18 | . 10 2 2 . 4 Terminals 11 | . 7 . . . 4 Fabricators . | . . . . . . Repair Stations 1 | . 1 . . . . Recycling Units 2 | . 2 . . . . Scanalyzers . | . . . . . . Garrison Access . | . . . . . . Total Hacks 57 | . 29 2 5 . 21 Successful 37 | . 21 2 5 . 9 Failed 19 | . 7 . . . 12 Catastrophic 1 | . . . . . 1 Database Lockouts 1 | . 1 . . . . Manual 35 | . 15 . 1 . 19 Terminals 40 | . 19 . . . 21 Fabricators . | . . . . . . Repair Stations 5 | . 5 . . . . Recycling Units 5 | . 5 . . . . Scanalyzers . | . . . . . . Garrison Access . | . . . . . . Terminal Hacks 20 | . 8 2 5 . 5 Record 4 | . . . 4 . . Robot Analysis 5 | . 2 . . . 3 Prototype ID Bank 2 | . 1 . . . 1 Open Door 2 | . . 2 . . . Level Access Points 1 | . 1 . . . . Locate Traps 4 | . 3 . . . 1 Patrol Status 1 | . 1 . . . . EX-Prototype ID Bank 1 | . . . 1 . . Fabricator Hacks . | . . . . . . Repair Station Hacks 4 | . 4 . . . . Scan Component 2 | . 2 . . . . Repair 2 | . 2 . . . . Recycling Unit Hacks 2 | . 2 . . . . Retrieve Components 2 | . 2 . . . . Scanalyzer . | . . . . . . Garrison Access Hacks . | . . . . . . Unauthorized Hacks 11 | . 7 . . . 4 Terminals 10 | . 6 . . . 4 Track 1 | . 1 . . . . Botnet 7 | . 4 . . . 3 Operators 2 | . 1 . . . 1 Fabricators . | . . . . . . Repair Stations . | . . . . . . Recycling Units 1 | . 1 . . . . Reject 1 | . 1 . . . . Scanalyzers . | . . . . . . Garrison Access . | . . . . . . Data Cores Recovered . | . . . . . . Used . | . . . . . . Hacking Detections 14 | . 10 . . . 4 Full Trace Events 2 | . 1 . . . 1 Feedback Events . | . . . . . . Feedback Blocked . | . . . . . . Robot Schematics Acquired . | . . . . . . Robots Built . | . . . . . . Authchips . | . . . . . . Time . | . . . . . . Total Robot Build Rating . | . . . . . . Part Schematics Acquired . | . . . . . . Parts Built . | . . . . . . Authchips . | . . . . . . Time . | . . . . . . Total Part Build Rating . | . . . . . . Parts Repaired 2 | . 2 . . . . Time 58 | . 58 . . . . Parts Recycled . | . . . . . . Recycled Matter . | . . . . . . Retrieved Matter . | . . . . . . Retrieved Components 3 | . 3 . . . . Parts Scanalyzed . | . . . . . . Part Schematics Acquired . | . . . . . . Parts Damaged . | . . . . . . Bothacking | -11 -10 -10 -10 -9 -8 ------------ Run | Scr Mat Min Exi Min Mat Used RIF Installer . | . . . . . . Robots Hacked . | . . . . . . Non-combat . | . . . . . . Combat . | . . . . . . Robot Hacks Applied . | . . . . . . Relay Couplers Released . | . . . . . . Fabnet Peak Effective % . | . . . . . . Robots Rewired . | . . . . . . Allies Hacked . | . . . . . . Hacks Repelled . | . . . . . . Allies | -11 -10 -10 -10 -9 -8 -------- Run | Scr Mat Min Exi Min Mat Total Allies 4 | . . 1 . 3 . Largest Group 3 | . . 1 . 3 3 Highest-Rated Group 40 | . . 31 . 40 40 Highest-Rated Ally 31 | . . 31 . 16 16 Total Orders 12 | . . . 2 6 4 STAY 5 | . . . . 3 2 FOLLOW 5 | . . . . 3 2 EXPLORE 1 | . . . 1 . . RETURN 1 | . . . 1 . . Ally Attacks 22 | . . 6 . 10 6 Total Damage 322 | . . 122 . 108 92 Kills 5 | . . . . 3 2 Allies Corrupted . | . . . . . . Allies Melted . | . . . . . . Intel | -11 -10 -10 -10 -9 -8 ------- Run | Scr Mat Min Exi Min Mat Robot Analysis Total 5 | . 2 . . . 3 Derelict Logs Recovered 3 | . . 1 . 2 . Drone Launches 2 | . . . 2 . . Drone Recoveries 1 | . . . 1 . . Exploration | -11 -10 -10 -10 -9 -8 ------------- Run | Scr Mat Min Exi Min Mat Turns Passed 6172 | 137 1308 1191 1386 1389 761 Spaces Moved 2790 | 84 883 586 523 440 274 Core 3 | 3 . . . . . Treads . | . . . . . . Legs 1772 | 81 139 315 523 440 274 Wheels 1015 | . 744 271 . . . Hover . | . . . . . . Flight . | . . . . . . Fastest Speed 50 | 50 100 105 260 260 190 Average Speed 184 | 120 115 172 260 260 190 Slowest Speed 260 | 190 190 260 260 260 190 Overloaded Moves . | . . . . . . Propulsion Burnouts . | . . . . . . Robots Hopped . | . . . . . . Cave-ins Triggered . | . . . . . . Exploration Rate (%) 61 | 4 94 74 91 79 28 Regions Visited 5 Branch Regions 3 Pre-discovered Areas 2 | . . . 1 1 . Known Exits Taken . | . . . . . . Unknown Exits Taken 5 | 1 1 1 1 1 . Scrap Searched 4 | . . 2 . 2 . Spaces Dug . | . . . . . . Terrain Destroyed 42 | . . 40 . . 2 Melee . | . . . . . . Projectile 2 | . . . . . 2 AOE 40 | . . 40 . . . Terrain Rammed . | . . . . . . Walls Destroyed . | . . . . . . Machines Disabled . | . . . . . . Actions | -11 -10 -10 -10 -9 -8 --------- Run | Scr Mat Min Exi Min Mat Total 3614 | 104 1106 706 551 687 460 Wait 550 | . 127 36 17 238 132 Move 2785 | 83 882 585 522 439 274 Hop . | . . . . . . Pick Up 68 | 8 31 18 1 2 8 Fast Attach 17 | 7 1 2 4 3 . Attach 11 | . 2 5 . . 4 Detach 1 | . . 1 . . . Swap 16 | . 6 6 1 . 3 Drop 55 | . 20 19 6 5 5 Fire 109 | 6 37 34 . . 32 Melee . | . . . . . . Ram . | . . . . . . Kick 2 | . . . . . 2 Crush . | . . . . . . Escape Stasis . | . . . . . . Rewire . | . . . . . . Trap . | . . . . . . Miscellaneous . | . . . . . . Route ------- -11/Scrapyard -10/Materials (discovered 5 exits: *Mat x3 / *Min x2) -10/Mines (discovered 3 exits: *Mat x2 / *Exi) -10/Exiles (discovered 2 exits: [*Min x2]) -9/Mines -8/Materials (discovered 1 exit: [*Fac]) History --------- Turn | Location | Event 31 | -11/Scrapyard | Discovered new exit (range 15) 138 | -11/Scrapyard | Entered Materials 305 | -10/Materials | Discovered new exit (range 16) 327 | -10/Materials | Build established: Mutant 456 | -10/Materials | Discovered new exit (range 13) 597 | -10/Materials | Discovered new exit (range 8) 884 | -10/Materials | Discovered new exit (range 16) 976 | -10/Materials | Central database locked down 976 | -10/Materials | Identified exit to Materials 1122 | -10/Materials | Discovered new exit (range 6) 1234 | -10/Materials | Repaired Com. Wheel 1268 | -10/Materials | Repaired Hrd. Light Armor Plating 1446 | -10/Materials | Entered Mines 1518 | -10/Mines | Deemed a non-threat by the Exiles lab entrance 1518 | -10/Mines | Discovered new exit (range 5) 1627 | -10/Mines | Learned Materials terminal intel 1631 | -10/Mines | Discovered exit to Materials (range 5) 1633 | -10/Mines | Met a Derelict testing a Signal Generator 1759 | -10/Mines | Met a Derelict who couldn't figure out how to use a Trap Extractor 1841 | -10/Mines | Discovered exit to Materials (range 9) 1940 | -10/Mines | Core integrity fell below 50% 2000 | -10/Mines | Met a Derelict shopkeep closing up shop 2637 | -10/Mines | Entered Exiles 2702 | -10/Exiles | Met 8R-AWN 2744 | -10/Exiles | Met EX-HEX 2858 | -10/Exiles | Met EX-DEC 2877 | -10/Exiles | Learned location of Zion (-6) 3168 | -10/Exiles | Met EX-BIN 3202 | -10/Exiles | Aligned with FarCom system 3204 | -10/Exiles | Given EX-Vault access code 3267 | -10/Exiles | Opened EX-Vault 3285 | -10/Exiles | Found Supersonic Drone Bay 3291 | -10/Exiles | Discovered new exit (range 57) 3297 | -10/Exiles | Discovered new exit (range 69) 3308 | -10/Exiles | Found Firepult 3389 | -10/Exiles | Warned to stay clear of 0b10 Research branches 4023 | -10/Exiles | Left Exiles lab with Firepult 4023 | -10/Exiles | Entered Mines 4094 | -9/Mines | Learned Materials garrison access intel 4112 | -9/Mines | Assisted by bots powering up and referring to "LRC-V3" 4195 | -9/Mines | Found a damaged Exp. Sensor Array with a note attached 4201 | -9/Mines | Found Prototype Device 4201 | -9/Mines | Identified Exp. Sensor Array 4359 | -9/Mines | A weapon hastily lodged in a ceiling crevice suddenly fell to the ground 4394 | -9/Mines | Learned Materials security intel 4593 | -9/Mines | Learned location of Storage (-8) 4670 | -9/Mines | Discovered new exit (range 15) 4716 | -9/Mines | Received a Rocket Launcher from a helpful Derelict 5412 | -9/Mines | Entered Materials 5412 | -8/Materials | Accompanied by 3 allies 5412 | -8/Materials | Evolved 4 slots: Propulsion x1, Utility x3 5414 | -8/Materials | Loaded intel: 12 terminal locations 5415 | -8/Materials | Loaded intel: 1 garrison access location 5968 | -8/Materials | Discovered new exit (range 10) 6173 | -8/Materials | Self-destructed Last Messages --------------- 06158_ Destroyed Flight Unit. 06158_ S-10 Pest knocked back. 06160_ K-01 Serf collects debris. 06161_ S-10 Pest destroyed. 06162_ K-01 Serf collects debris. 06162_ U-05 Engineer builds a Wall. 06164_ K-01 Serf collects debris. 06164_ Acquired 20 matter. 06166_ K-01 Serf collects debris. 06166_ S-10 Pest suffers critical hit (Destroy). 06166_ Destroyed Lgt. Assault Rifle. 06167_ Carbon-fiber Leg destroyed. 06168_ U-05 Engineer builds a Wall. 06169_ K-01 Serf collects debris. 06169_ Door malfunctions. 06169_ Slug penetrates Purification Channel. 06170_ K-01 Serf destroyed. 06171_ Acquired 12 matter. 06171_ U-05 Engineer destroyed. 06172_ K-01 Serf collects debris. Map ----- +----------------------------------------------------+ | ??????????????????????????????????????????????# | | ?????????????????????????????????????########## | | ?????????????????????????????????????# ! # " | | ?????????????????????????????????????#""" # " | | ?????????????????????????????????????#""" # " | | ?????????????????????????????????????#""" # | | ?????????????????????????????????????# + | | ????????????????????????????T????????#""" # | | ?????????????????????????????????????#""" # | | ?????????????????????????????????????#""" # | | ????????????????s????????????????????# # | | ??????????????s??????????????????????########## | | ????????????????s????Y????????????????????????# = | | ??????????????????????????????????##########??# !% | | ??????????????????????????????????# ?# !! | | ??????????????????????????????????# ?# | | ??????????????????????????????????# ! # | | ??????????????????????????????????# # | | ????????????????#?????????????????# + | | ??????????g?????# ??############### # | | ????????????????# ??# k # # | | ????????????????# ?#* " """"" ##/########## | | ????????????????# #[" " """"" ## #???????# | | ????????????????# %/=sk" " " !=##!######### | | ????????????????# #s*[s a %t/%=% T | | ????????????????# #=%*=@ % !##[ | | ????????????????# #####/########## ####### | | ????????????????# %*=*#???????# #?????##### | | ????????????????+ %a%"######## #?????????# | | ????????????????# *= T #?????????# | | ????????????????# #?????????# | | ????????????????# """ """ #?????????# | | ????????????????# """ """ #?????????# | | ????????????????# """ """ #?????????# | | ????????????????# """ "" #?????????# | | ????????????????# """ """ s #?????????# | | ????????????????# #?????????# | | ????????????????+ #???= ##### | | ????????????????# """ """ """ !%* | | ????????????????# """ """ """ ! | | ????????????????# """ """ """ ### ???## | | ????????????????# """ """ """ #??####????# | | ????????????????# """ """ #??????????# | | ????????????????# #??????????# | | ????????????????+ #??????????# | | ????????????????# ###### ############ | | ????????????????#